[Event "17th Memorial Lezcano Montalvo 2025"]
[Site "Gran Canaria"]
[Date "2025.04.16"]
[Round "5.56"]
[White "Alonso Galvez, Ana Belen"]
[Black "Zhang, Ying Jun Xiong"]
[Result "0-1"]
[Annotator "NA RC"]
[ECO "B01"]
[WhiteElo "1554"]
[BlackElo "2015"]
[PlyCount "114"]
[EventDate "2025.04.13"]
[EventType "swiss"]
[EventCountry "ESP"]
[SourceTitle "playchess.com"]
[Source "ChessBase"]
[SourceQuality "1"]
[TimeControl "5400+30"]

1. e4 {[%emt 0:00:02]} d5 {[%emt 0:00:02]} 2. e5 {[%emt 0:00:17]} c5 {[%emt 0:00:05]} 3. d4 {[%emt 0:00:11]} Nc6 {[%emt 0:00:04]} 4. Nf3 {[%emt 0:00:13]} cxd4 {[%emt 0:00:12]} 5. Bf4 {[%emt 0:00:31]} Bg4 {[%emt 0:00:13]} 6. Nbd2 {[%emt 0:00:58]} e6 {[%emt 0:00:23]} 7. Be2 {[%emt 0:00:29]} Bc5 {[%emt 0:00:13]} 8. Nb3 {[%emt 0:00:30]} Bb4+ {[%emt 0:00:23]} 9. Nfd2 {[%emt 0:00:52]} Bxe2 {[%emt 0:00:50]} 10. Qxe2 {[%emt 0:00:07]} Nge7 {[%emt 0:00:45]} 11. Qb5 {[%emt 0:00:35]} a5 {[%emt 0:02:07]} 12. Nxd4 {[%emt 0:00:11]} Rb8 {[%emt 0:01:24]} 13. c3 {[%emt 0:00:17]} Qd7 {[%emt 0:00:15]} 14. cxb4 {[%emt 0:00:06]} Nxd4 {[%emt 0:00:06]} 15. Qxd7+ {[%emt 0:00:45]} Kxd7 {[%emt 0:00:04]} 16. O-O {[%emt 0:00:34]} Ne2+ {[%emt 0:00:17]} 17. Kh1 {[%emt 0:00:24]} Nxf4 {[%emt 0:00:04]} 18. bxa5 {[%emt 0:00:16]} Nc6 {[%emt 0:00:09]} 19. Nb3 {[%emt 0:00:22]} Nxe5 {[%emt 0:00:11]} 20. Rac1 {[%emt 0:00:21]} Rbc8 {[%emt 0:00:19]} 21. Nc5+ {[%emt 0:01:13]} Ke7 {[%emt 0:00:16]} 22. Nxb7 {[%emt 0:00:40]} Rxc1 {[%emt 0:00:10]} 23. Rxc1 {[%emt 0:00:07]} Ned3 {[%emt 0:00:15]} 24. Rc7+ {[%emt 0:00:31]} Kf6 {[%emt 0:00:10]} 25. Rc2 {[%emt 0:01:05]} Ne1 {[%emt 0:01:04]} 26. Rc3 {[%emt 0:01:14]} Nfd3 {[%emt 0:01:35]} 27. Kg1 {[%emt 0:00:40]} Ra8 {[%emt 0:00:12]} 28. a3 {[%emt 0:01:23]} Ra7 {[%emt 0:00:09]} 29. Nc5 {[%emt 0:00:25]} Rxa5 {[%emt 0:00:17]} 30. Nxd3 {[%emt 0:00:05]} d4 {[%emt 0:01:43]} 31. Rb3 {[%emt 0:00:18]} Nxd3 {[%emt 0:00:23]} 32. Rxd3 {[%emt 0:00:03]} Ke5 {[%emt 0:00:22]} 33. f3 {[%emt 0:00:10]} Ra4 {[%emt 0:00:21]} 34. b4 {[%emt 0:00:12]} Kd5 {[%emt 0:00:27]} 35. Kf2 {[%emt 0:00:08]} f5 {[%emt 0:00:06]} 36. g3 {[%emt 0:00:20]} e5 {[%emt 0:00:06]} 37. Ke2 {[%emt 0:00:30]} e4 {[%emt 0:00:02]} 38. fxe4+ {[%emt 0:00:23]} fxe4 {[%emt 0:00:08]} 39. Rb3 {[%emt 0:00:36]} Kc4 {[%emt 0:00:17]} 40. Rb1 {[%emt 0:00:14]} Rxa3 {[%emt 0:00:06]} 41. b5 {[%emt 0:00:18]} Re3+ {[%emt 0:00:18]} 42. Kd2 {[%emt 0:00:22]} Rf3 {[%emt 0:00:26]} 43. Ke1 {[%emt 0:00:42]} e3 {[%emt 0:00:11]} 44. b6 {[%emt 0:00:08]} Rf8 {[%emt 0:00:24]} 45. b7 {[%emt 0:00:15]} Rb8 {[%emt 0:00:18]} 46. Ke2 {[%emt 0:00:10]} h6 {[%emt 0:00:20]} 47. Rc1+ {[%emt 0:00:16]} Kd5 {[%emt 0:00:06]} 48. Rc7 {[%emt 0:00:02]} g5 {[%emt 0:00:18]} 49. Kd3 {[%emt 0:00:12]} h5 {[%emt 0:01:25]} 50. h4 {[%emt 0:00:13]} gxh4 {[%emt 0:00:04]} 51. gxh4 {[%emt 0:00:06]} Ke5 {[%emt 0:00:23]} 52. Rh7 {[%emt 0:00:12]} Kf4 {[%emt 0:00:30]} 53. Kxd4 {[%emt 1:35:46]} Rd8+ {[%emt 0:00:47]} 54. Kc3 {[%emt 0:00:00]} e2 {[%emt 0:00:47]} 55. Re7 {[%emt 0:00:00]} Kf3 {[%emt 0:00:05]} 56. Kb4 {[%emt 0:00:00]} Kf2 {[%emt 0:00:05]} 57. Ka5 {[%emt 0:00:00]} e1=Q+ {[%emt 0:00:17]} 0-1